Cogmind - Beta 16 @@@ ROGUE MODE // 2025.10.31 @ 02:47:10 Player: Cereal Killer Result: Destroyed by P-70 Sage with High-powered Shock Rifle Performance ------------- Evolutions (5) 2500 Regions Visited (15) 3000 Robots Destroyed (297) 1485 Value Destroyed (13316) 13316 Prototype IDs (56) 1120 Alien Tech Used (0) 0 Bonus (12121) 12121 TOTAL SCORE: 33542 Bonus ------- Triggered High Security 1000 High Alert Combat Kills 7406 Follower Combat Kills 2212 Entered Garrisons 200 Entered DSFs 500 Network Hubs Disabled 200 Aligned with FarCom 300 Built Enhanced Grunts 300 A7 Reached Mainframe 300 Met R17 at Cetus 500 Friendly Fire -797 Cogmind --------- Core Integrity 0/1000 Matter 247/300 Energy 27/100 System Corruption 11% Temperature Cool (80) Movement Core (50) Location -5/Factory Parts ------- > --- POWER (2) -------- (None) > --- PROPULSION (3) --- (None) > --- UTILITY (9) ------ (None) > --- WEAPON (3) ------- (None) > --- INVENTORY (5) ---- Advanced Power Amplifier Centrium Medium Armor Plating Wave Gun Advanced Variable Charge Gun Peak State ------------ > --- POWER ------------ Reinforced Deuterium Engine Enhanced Fission Core > --- PROPULSION ------- Wheel Armored Huge Wheel > --- UTILITY ---------- Cryofiber Web Advanced Heat Sink Advanced Heat Sink Experimental Heat Sink High-capacity Storage Unit Advanced Targeting Computer Centrium Medium Armor Plating Centrium Medium Armor Plating Experimental Thermal Shield > --- WEAPON ----------- Wave Gun Wave Gun Wave Gun > --- INVENTORY -------- Antimatter Reactor Advanced Power Amplifier Experimental Phase Shifter Experimental Power Shielding Centrium Medium Armor Plating Centrium Medium Armor Plating Experimental EM Shield Improved Shield Generator Improved System Restoration Module Splice Drone Bay Arc Projector Arc Projector Advanced Variable Charge Gun EMDS Firepult Improved Proton Missile Launcher Power Maul [Rating: 102] Favorites ----------- Power Reinforced Deuterium Engine Engine Reinforced Deuterium Engine Power Core Enhanced Fission Core Propulsion Armored Huge Wheel Treads Light Treads Wheel Armored Huge Wheel Flight Unit Field Propulsion Drive Utility High-capacity Storage Unit Device Cryofiber Web Storage High-capacity Storage Unit Processor Advanced Targeting Computer Hackware Hacking Suite Protection Centrium Medium Armor Plating Weapon Heavy Plasma Cannon Energy Gun Advanced Variable Charge Gun Energy Cannon Heavy Plasma Cannon Ballistic Gun Shotgun Launcher Improved Proton Missile Launcher Impact Weapon Power Maul Slashing Weapon Katana Build | -11 -10 -10 -10 -9 -8 -8 -8 -7 -7 -6 -6 -6 -6 -6 -5 ------- Run | Yrd Mat Min Exi Min Mat Gar Mat Fac DSF Fac Ext Cet Arc Hub Fac Slots Evolved 10 | . . . . . 4 . . 2 . 2 . . . . 2 Power 1 | . . . . . . . . . . 1 . . . . . Propulsion 1 | . . . . . 1 . . . . . . . . . . Utility 7 | . . . . . 3 . . 2 . 1 . . . . 1 Weapon 1 | . . . . . . . . . . . . . . . 1 Parts Attached 146 | 6 17 1 1 2 15 20 20 1 8 3 7 9 1 21 14 Power 24 | 1 3 . 1 . 1 2 8 . 2 1 . . 1 3 1 Engine 20 | 1 3 . 1 . 1 1 7 . 2 1 . . . 3 . Core 4 | . . . . . . 1 1 . . . . . 1 . 1 Reactor . | . . . . . . . . . . . . . . . . Propulsion 24 | 2 5 1 . 1 1 3 1 . 1 . 3 1 . 3 2 Treads 3 | . 2 . . . . . . . . . . 1 . . . Leg . | . . . . . . . . . . . . . . . . Wheel 19 | 2 3 1 . 1 1 2 1 . 1 . 3 . . 3 1 Hover . | . . . . . . . . . . . . . . . . Flight 2 | . . . . . . 1 . . . . . . . . 1 Utility 53 | 1 6 . . . 7 9 4 1 3 1 4 3 . 9 5 Device 23 | . 1 . . . 6 3 1 . 1 . 3 . . 7 1 Storage 5 | 1 2 . . . . 1 . . . . . . . . 1 Processor 2 | . 1 . . . . . . 1 . . . . . . . Hackware 1 | . . . . . . . 1 . . . . . . . . Protection 22 | . 2 . . . 1 5 2 . 2 1 1 3 . 2 3 Artifact . | . . . . . . . . . . . . . . . . Weapon 45 | 2 3 . . 1 6 6 7 . 2 1 . 5 . 6 6 Energy Gun 19 | 1 1 . . . 2 2 3 . . 1 . 3 . 1 5 Energy Cannon 9 | . . . . . . . 3 . 2 . . 1 . 2 1 Ballistic Gun 10 | 1 2 . . 1 2 2 1 . . . . 1 . . . Ballistic Cannon . | . . . . . . . . . . . . . . . . Launcher 5 | . . . . . 2 1 . . . . . . . 2 . Special Weapon . | . . . . . . . . . . . . . . . . Impact Weapon 1 | . . . . . . . . . . . . . . 1 . Slashing Weapon 1 | . . . . . . 1 . . . . . . . . . Piercing Weapon . | . . . . . . . . . . . . . . . . Special Melee Weapon . | . . . . . . . . . . . . . . . . Unidentified Prototypes 20 | . . . . . 4 1 2 . . 2 . 4 . 6 1 Parts Lost 42 | . 2 1 . . 1 8 3 . 1 . 2 . . 9 15 Power 7 | . 1 . . . . 2 2 . . . . . . 2 . Propulsion 12 | . . 1 . . . 3 . . . . . . . 5 3 Utility 16 | . . . . . 1 2 . . 1 . 2 . . . 10 Weapon 7 | . 1 . . . . 1 1 . . . . . . 2 2 Highest Loss Streak 6 | . 1 1 . . 1 4 2 . 1 . 1 . . 4 6 To Critical Strikes . | . . . . . . . . . . . . . . . . Average Backups 14 | 2 8 13 14 14 13 13 16 15 14 14 15 15 17 16 15 Power 1 | . 1 1 1 1 1 . . 1 1 1 1 2 2 1 . Propulsion 2 | . 3 4 5 4 2 3 3 3 2 2 2 3 3 2 . Utility 6 | . 1 3 3 3 5 6 8 6 6 7 7 5 7 8 7 Weapon 4 | 1 1 3 4 4 3 3 4 5 4 4 4 5 5 4 6 Tool/Special . | . . . . . . . . . . . . . . . . Unused Backups 30 | . 7 . . 2 . 4 5 . 4 1 1 2 . 1 3 Power 7 | . 1 . . . . . 1 . 2 . . . . 1 2 Propulsion 9 | . 5 . . 2 . 2 . . . . . . . . . Utility 10 | . 1 . . . . 2 2 . 1 1 1 1 . . 1 Weapon 4 | . . . . . . . 2 . 1 . . 1 . . . Tool/Special . | . . . . . . . . . . . . . . . . Average Slot Usage (%) 88 | . 96 100 100 100 90 91 89 91 84 85 85 89 93 86 72 Engine 9 | . 13 14 14 14 9 6 8 7 7 13 13 13 7 9 4 Wheel 16 | . 21 28 28 28 27 19 18 15 15 13 13 12 13 11 7 Device 15 | . 3 . . . 5 12 13 15 15 19 21 26 26 27 22 Storage 8 | . 14 14 14 14 9 9 9 7 7 6 6 6 6 6 4 Processor 7 | . 2 14 14 14 9 9 9 7 7 6 6 6 6 6 4 Protection 10 | . 5 . . . 13 14 10 14 13 12 10 11 13 11 10 Energy Gun 4 | . 14 . . . 1 10 2 . . . . 6 13 4 6 Energy Cannon 5 | . . . . . . . 12 7 10 13 13 1 . 3 3 Ballistic Gun 5 | . 13 28 28 28 14 4 3 7 3 . . 2 . . . Peak Build Rating 102 | 6 13 13 15 16 31 44 43 50 56 65 68 78 79 100 102 Average Rating 50 | 4 9 12 13 15 22 36 40 49 53 63 65 72 78 85 80 On Entrance 39 | . 6 13 13 15 16 31 36 43 50 55 64 68 77 79 65 Avg Prop Armor Cover (%) 2 | . . . . . . . . . . . . 2 . . . Naked Turns 63 | . . . . . . . . . . . . . . . 63 Heaviest Build 121 | 12 31 31 31 29 51 62 70 73 94 113 113 112 104 105 121 Greatest Support 80 | 20 40 22 22 22 38 40 40 40 40 38 44 80 38 38 38 Greatest Overweight (x) 8 | . 1 1 1 1 1 3 1 1 2 2 2 2 2 7 8 Average Overweight (x) 1 | . . 1 1 1 . 1 1 1 1 2 2 1 2 2 1 Largest Inventory Capacity 20 | 8 15 15 15 15 15 20 20 20 20 20 20 20 20 20 20 Average Capacity 17 | 7 8 15 15 15 15 16 20 20 20 20 20 20 20 20 18 Most Carried 20 | 4 11 14 15 15 15 20 20 20 20 20 20 20 20 20 20 Average Carried 16 | 2 8 13 14 14 14 15 19 19 19 19 19 19 20 19 16 Final Capacity 20 | 8 15 15 15 15 15 20 20 20 20 20 20 20 20 20 5 Final Carried 20 | 4 11 14 15 15 13 19 20 20 20 20 20 20 20 20 4 Class Distribution -------------------- 40% | Scavenger-Mutant 39% | Mutant 14% | Commander-Mutant 4% | Scavenger-Tank Dominant Class ---------------- Mutant | -10/Materials Mutant | -10/Mines Mutant | -10/Exiles Mutant | -9/Mines Mutant | -8/Materials Scavenger-Mutant | -8/Garrison Mutant | -8/Materials Mutant | -7/Factory Scavenger-Mutant | -7/DSF Scavenger-Mutant | -6/Factory Scavenger-Mutant | -6/Extension Commander-Mutant | -6/Cetus Commander-Mutant | -6/Archives Scavenger-Mutant | -6/Hub_04(d) Scavenger-Tank | -5/Factory Resources | -11 -10 -10 -10 -9 -8 -8 -8 -7 -7 -6 -6 -6 -6 -6 -5 ----------- Run | Yrd Mat Min Exi Min Mat Gar Mat Fac DSF Fac Ext Cet Arc Hub Fac Matter Collected 3771 | 227 356 207 . 78 242 563 345 . 263 . 151 130 10 840 359 Remotely . | . . . . . . . . . . . . . . . . Salvage Created 15951 | . 700 276 . 19 327 1693 1318 . 710 99 969 395 76 6435 2934 Parts 450 | . 44 10 . . 17 85 68 . 26 2 36 11 1 107 43 Haulers Intercepted 11 | . 2 . . . 2 . 3 . . 1 . . . 1 2 Recyclers Shooed 5 | . . 1 . 1 . . 2 . . . 1 . . . . Parts Field Recycled . | . . . . . . . . . . . . . . . . Retrieved Matter . | . . . . . . . . . . . . . . . . Parts Self-Destructed . | . . . . . . . . . . . . . . . . Prevented . | . . . . . . . . . . . . . . . . Parts Restored . | . . . . . . . . . . . . . . . . Kills | -11 -10 -10 -10 -9 -8 -8 -8 -7 -7 -6 -6 -6 -6 -6 -5 ------- Run | Yrd Mat Min Exi Min Mat Gar Mat Fac DSF Fac Ext Cet Arc Hub Fac Combat Hostiles Destroyed 242 | . 16 5 . 4 6 28 25 . 11 . 14 5 1 86 41 Guns 63 | . 13 5 . 4 2 20 8 . 1 . . . 1 5 4 Cannons 57 | . . . . . . . 15 . 10 . 9 1 . 12 10 AOE 40 | . . . . . 4 6 . . . . . 1 . 20 9 Classes Destroyed 22 | . 8 1 . 1 2 1 . . 2 . 1 . . 6 . Worker 9 | . 2 . . . . . . . . . . . . 6 1 Builder 3 | . 1 . . . . . 1 . . . . . . 1 . Tunneler 2 | . 1 . . . 1 . . . . . . . . . . Hauler 11 | . 2 . . . 2 . 3 . . 1 . . . 1 2 Recycler 5 | . . 2 . . . . 1 . . . . . . 1 1 Carrier 4 | . . . . . . . . . . . . . . 3 1 Mechanic 6 | . . . . . . . . . . . . . . 4 2 Operator 1 | . 1 . . . . . . . . . . . . . . Watcher 9 | . 1 . . . . . 4 . . . 2 1 . . 1 Swarmer 31 | . 5 3 . . . 5 10 . 4 . . . . 3 1 Cutter 3 | . . . . . . 3 . . . . . . . . . Saboteur 5 | . . . . . . . . . . . . . . 2 3 Grunt 117 | . 11 2 . . 3 13 10 . 4 . 5 . . 47 22 Brawler 8 | . . . . . . . . . 1 . . . . 6 1 Duelist 10 | . . . . . . . . . . . . . . 6 4 Protector 5 | . . . . . . . . . . . . . . 5 . Sentry 29 | . . . . . 1 5 5 . . . 7 . 1 9 1 Hunter 15 | . . . . . 2 2 . . 1 . 1 . . 5 4 Programmer 7 | . . . . . . . . . . . . . . 2 5 Heavy 1 | . . . . . . . . . 1 . . . . . . Behemoth 1 | . . . . . . . . . . . 1 . . . . Cetus Guard 5 | . . . . . . . . . . . . 5 . . . Enhanced Grunt 2 | . . . . . . . . . . . . . . 2 . Lightning 1 | . . . . . . . . . . . . . . 1 . Assembled 4 | . . . . 4 . . . . . . . . . . . Thug 6 | . . . . . . . . . . . 1 . . 5 . Guerrilla 1 | . . . . . . . . . . . . . . 1 . Best Kill Streak 37 | . 5 4 . 4 4 12 7 . 7 1 4 4 1 37 13 Combat Bots Only 33 | . 3 3 . 4 4 12 7 . 7 . 3 4 1 33 10 Max Kills in Single Turn 6 | . 1 1 . 1 2 2 1 . 2 1 1 4 1 6 3 Gunslinging . | . . . . . . . . . . . . . . . . Exploded 2 | . . . . . 2 2 . . . . . 1 . 2 2 Melee . | . . . . . . . . . . . . . . . . Uniques/NPCs Destroyed . | . . . . . . . . . . . . . . . . Combat | -11 -10 -10 -10 -9 -8 -8 -8 -7 -7 -6 -6 -6 -6 -6 -5 -------- Run | Yrd Mat Min Exi Min Mat Gar Mat Fac DSF Fac Ext Cet Arc Hub Fac Hostile Shots Fired 1211 | . 97 14 . 8 23 116 97 . 34 8 247 11 13 273 270 Missed 426 | . 26 1 . 3 8 32 28 . 9 1 94 6 4 105 109 Hits 785 | . 71 13 . 5 15 84 69 . 25 7 153 5 9 168 161 Melee 18 | . . . . 1 . 7 . . 1 . . . . 3 6 Projectile 767 | . 71 13 . 4 15 77 69 . 24 7 153 5 9 165 155 AOE 1 | . . . . . . . . . . . . . . 1 . Critical Strikes 29 | . . 1 . . . 7 1 . 1 . 1 . 2 8 8 Actively Blocked 4 | . . . . . . 3 . . . . . . . . 1 Damage Taken 10575 | . 758 127 . 87 187 1159 873 20 560 77 1210 88 133 2485 2811 Core 1949 | . 144 42 . 10 47 191 111 . 48 . 142 17 . 178 1019 Absorbed by Shields 1135 | . . . . . 32 . . . . 28 496 32 46 254 247 Redirected to Shielding 336 | . 22 . . . 15 101 36 . 19 7 78 . . . 58 Ignored by Resistances 960 | . . . . . 19 53 . . 66 . . 11 36 464 311 Regen/Repaired (Parts) 64 | . . . . . . . . . . . 64 . . . . Core Remaining (%) 62 | 100 . . . 21 . . 36 . 93 . . . . 60 . Volleys Fired 571 | . 68 14 . 9 12 90 78 . 30 2 45 5 3 136 79 Largest 3 | . 2 2 . 2 2 2 2 . 2 2 2 2 2 2 3 Hottest 480 | . 100 46 . 46 66 115 160 . 180 180 180 250 160 480 348 Shots Fired 967 | . 136 28 . 18 23 155 153 . 60 4 89 6 6 161 128 Gun 560 | . 136 28 . 18 17 149 54 . 17 . . 1 6 67 67 Cannon 390 | . . . . . . . 99 . 43 4 89 5 . 89 61 Launcher 17 | . . . . . 6 6 . . . . . . . 5 . Special . | . . . . . . . . . . . . . . . . Kinetic 194 | . 52 28 . 18 17 33 29 . 17 . . . . . . Thermal 678 | . 84 . . . . 92 111 . 43 4 89 6 6 123 120 Explosive 9 | . . . . . 6 . . . . . . . . 3 . Electromagnetic 86 | . . . . . . 30 13 . . . . . . 35 8 Robot Hit Streak 34 | . 10 6 . 3 14 27 11 . 20 12 34 5 11 21 20 Robot Miss Streak 5 | . 4 4 . 5 3 3 4 . 2 . 3 1 . 3 3 Penetration Max 1 | . . . . . . . . . . . . . . 1 1 Secondary Targets 8 | . 1 3 . . . 3 . . . . . . . . 1 Max Gunslinging Chain 1 | . 1 1 . . . 1 . . . . . . . . 1 Shots Hit Robots 634 | . 85 20 . 10 13 101 88 . 35 3 67 4 6 117 85 Core Hits 595 | . 37 12 . 6 23 57 42 . 17 1 27 21 3 237 112 Critical Kills 8 | . . . . . . 1 2 . . 1 2 . . . 2 Critical Parts Destroyed 2 | . . . . . 1 . . . . . . . . . 1 Critical Strikes 33 | . 7 . . . 1 4 3 . . 1 2 . . 7 8 Burn 11 | . 7 . . . . 2 1 . . . . . . . 1 Meltdown 7 | . . . . . . . 2 . . 1 2 . . . 2 Destroy 2 | . . . . . 1 1 . . . . . . . . . Corrupt 11 | . . . . . . . . . . . . . . 7 4 Smash 1 | . . . . . . . . . . . . . . . 1 Sever 1 | . . . . . . 1 . . . . . . . . . Melee Attacks 18 | . . . . . . 17 . . . . . . . . 1 Impact 1 | . . . . . . . . . . . . . . . 1 Slashing 17 | . . . . . . 17 . . . . . . . . . Piercing . | . . . . . . . . . . . . . . . . Sneak Attacks 1 | . . . . . . . . . . . . . . . 1 Combat Hostiles . | . . . . . . . . . . . . . . . . Follow-up Attacks . | . . . . . . . . . . . . . . . . Damage Inflicted 28686 | . 1070 311 . 116 652 2852 2245 . 935 111 2391 691 179 11569 5564 Guns 6622 | . 1070 311 . 116 238 1460 408 . 176 . . . 179 1765 899 Cannons 9251 | . . . . . . . 1724 . 759 111 2391 172 . 2305 1789 Explosions 11957 | . . . . . 414 607 113 . . . . 519 . 7499 2805 Melee 856 | . . . . . . 785 . . . . . . . . 71 Ramming . | . . . . . . . . . . . . . . . . Kinetic 2019 | . 479 311 . 116 238 446 253 . 176 . . . . . . Thermal 21676 | . 591 . . . 54 923 1924 . 759 111 2391 691 179 9033 5020 Explosive 839 | . . . . . 360 . . . . . . . . 479 . Electromagnetic 3296 | . . . . . . 698 68 . . . . . . 2057 473 Impact 71 | . . . . . . . . . . . . . . . 71 Slashing 785 | . . . . . . 785 . . . . . . . . . Piercing . | . . . . . . . . . . . . . . . . Highest Corruption 13 | . . . . . . 1 2 . . . 2 2 2 13 11 Average Corruption 2 | . . . . . . 1 1 . . . 2 2 2 5 3 Corruption Purged 7 | . . . . . . . . . . . . . . 7 . Corruption Blocked . | . . . . . . . . . . . . . . . . Effects 90 | . . . . . . 5 16 . . . 25 4 1 32 7 Message Errors 24 | . . . . . . . 6 . . . 7 2 . 9 . Matter Fused 23 | . . . . . . 1 5 . . . 4 . . 9 4 Heat Flow Errors 9 | . . . . . . . 1 . . . 2 . . 4 2 Energy Discharges 9 | . . . . . . 1 2 . . . 3 2 . 1 . Parts Rejected 1 | . . . . . . . . . . . . . . 1 . Data Loss (minor) 10 | . . . . . . . 2 . . . 5 . . 2 1 Data Loss (major) 8 | . . . . . . 2 . . . . 3 . 1 2 . Misfires 3 | . . . . . . 1 . . . . . . . 2 . Alerts 1 | . . . . . . . . . . . 1 . . . . Weapon Failures 2 | . . . . . . . . . . . . . . 2 . Overload Shots 22 | . . . . . . . . . . . . 1 . 20 1 Overflow Damage 337 | . . . . . . 26 2 . . . 1 . . 237 71 Projectiles 61 | . . . . . . . 2 . . . 1 . . 58 . Explosions 205 | . . . . . . 26 . . . . . . . 179 . Melee 71 | . . . . . . . . . . . . . . . 71 Knockbacks . | . . . . . . . . . . . . . . . . Impact . | . . . . . . . . . . . . . . . . Kinetic . | . . . . . . . . . . . . . . . . Secondary . | . . . . . . . . . . . . . . . . Self-Inflicted Damage 330 | . . . . . 48 27 . . . . . . . 225 30 Shots 23 | . . . . . 1 1 . . . . . . . 18 3 Rammed . | . . . . . . . . . . . . . . . . Targets Rammed . | . . . . . . . . . . . . . . . . Kicked . | . . . . . . . . . . . . . . . . Crushed . | . . . . . . . . . . . . . . . . Highest Temperature 401 | . 203 26 . . 36 44 227 . . 286 250 56 . 281 401 Average Temperature 70 | . 57 18 . . 24 12 48 . . 146 76 36 . 88 121 Received Heat Transfer 2583 | . 345 45 . . 37 387 306 . 99 . 346 . 12 650 356 Effects 2 | . . . . . . . . . . . 1 . . . 1 Shutdowns 1 | . . . . . . . . . . . . . . . 1 Interference 1 | . . . . . . . . . . . 1 . . . . Siege Activations . | . . . . . . . . . . . . . . . . Martial Activations . | . . . . . . . . . . . . . . . . Shielding Activations . | . . . . . . . . . . . . . . . . Robots Disrupted 2 | . . . . . . 1 . . . . . . . 1 . Combat Hostiles 2 | . . . . . . 1 . . . . . . . 1 . Robots Corrupted 9 | . . . . . . 2 . . . . . . . 5 2 Combat Hostiles 7 | . . . . . . 2 . . . . . . . 3 2 Parts Fried 25 | . . . . . . 2 . . . . . 1 . 15 7 Impact Corruptions 2 | . . . . . . . . . . . . . . . 2 Robots Melted 81 | . 3 . . . . . 2 . . 1 5 3 . 50 17 Combat Hostiles 75 | . 3 . . . . . 2 . . . 5 3 . 46 16 Parts Melted 351 | . 6 . . . . . 8 . 1 1 14 12 2 221 86 Heat Transferred 70631 | . 2257 . . . 50 1826 3622 . 1350 150 3600 3780 222 36927 16847 Parts Sabotaged . | . . . . . . . . . . . . . . . . Parts Stolen . | . . . . . . . . . . . . . . . . Parts Stripped . | . . . . . . . . . . . . . . . . Power Chain Reactions 1 | . . . . . . 1 . . . . . . . . . Alert | -11 -10 -10 -10 -9 -8 -8 -8 -7 -7 -6 -6 -6 -6 -6 -5 ------- Run | Yrd Mat Min Exi Min Mat Gar Mat Fac DSF Fac Ext Cet Arc Hub Fac Maximum Alert Level 5 | . 1 . . . 1 4 3 2 2 1 3 2 1 5 5 Low Security (%) 36 | 100 98 100 . 100 81 6 . . . 42 73 . . 16 . Level 1 12 | . 1 . . . 18 15 . 25 71 57 11 5 100 2 . Level 2 18 | . . . . . . 25 46 75 28 . 11 94 . 10 . Level 3 14 | . . . . . . 50 53 . . . 3 . . 5 . Level 4 2 | . . . . . . 2 . . . . . . . 13 . Level 5 6 | . . . . . . . . . . . . . . 8 56 High Security 9 | . . . . . . . . . . . . . . 42 43 Max Security . | . . . . . . . . . . . . . . . . Sterilizations 1 | . . . . . . . . . 1 . . . . . . Peak Influence 3958 | . 202 104 . . 222 1140 1059 455 582 305 710 628 374 3958 3153 Initial 1934 | . . 64 . . . 98 555 455 265 305 58 392 227 116 1934 Average 739 | . 92 29 . . 96 699 793 419 400 211 169 529 336 1777 2312 Influence Increases 11343 | . 565 130 . . 296 1122 990 4 327 12 1161 366 177 4548 1645 Destroy 0b10 Robot/C 5840 | . 320 100 . . 120 560 500 . 220 . 520 160 80 2420 840 Destroy 0b10 Robot/NC 320 | . 40 10 . . 15 25 45 . . 5 25 10 . 110 35 Destroy Leader 962 | . 66 20 . . 44 40 124 . 40 2 64 . . 416 146 Allied During Kill 1754 | . . . . . . . . . 2 . 466 170 80 1036 . Trap Triggered on 0b10 50 | . . . . . . . . . 50 . . . . . . Successful Hack 254 | . 18 . . . . 14 57 4 . 4 33 . . 80 44 Disable Machine 645 | . . . . . 60 15 120 . 15 . 15 15 15 255 135 Anti-Garrison Action 450 | . . . . . . 250 . . . . . . . . 200 Destroy Structure 513 | . 1 . . . 57 68 54 . . 1 23 11 2 186 110 Lose Combat Pursuer 555 | . 120 . . . . 150 90 . . . 15 . . 45 135 Influence Decreases 8188 | . 400 241 54 . 144 134 1127 628 124 475 579 499 411 934 2438 Entered New Map 4676 | . . 101 54 . . 54 585 548 114 277 61 309 341 218 2014 Time Decay 2652 | . 370 130 . . 134 . 502 80 . 198 418 190 50 326 254 Lost Part 420 | . 20 10 . . 10 80 30 . 10 . 20 . . 90 150 Lost Ally 290 | . 10 . . . . . 10 . . . 80 . 20 150 20 Purge Threat 150 | . . . . . . . . . . . . . . 150 . Squads Dispatched 73 | . 4 . . . 2 . 4 . 1 1 2 . . 40 19 Investigation 8 | . 2 . . . 2 . . . . . 1 . . 2 1 Extermination 3 | . . . . . . . . . . 1 . . . 2 . Reinforcement 10 | . 2 . . . . . 2 . 1 . 1 . . 3 1 Assault 43 | . . . . . . . 2 . . . . . . 24 17 Garrison 9 | . . . . . . . . . . . . . . 9 . Intercept . | . . . . . . . . . . . . . . . . Searches Triggered . | . . . . . . . . . . . . . . . . Construction Impeded . | . . . . . . . . . . . . . . . . Haulers Reinforced . | . . . . . . . . . . . . . . . . Active Scanning Responses . | . . . . . . . . . . . . . . . . Cargo Convoy Interrupts . | . . . . . . . . . . . . . . . . Stealth | -11 -10 -10 -10 -9 -8 -8 -8 -7 -7 -6 -6 -6 -6 -6 -5 --------- Run | Yrd Mat Min Exi Min Mat Gar Mat Fac DSF Fac Ext Cet Arc Hub Fac Distress Signals 12 | . 2 . . 1 1 . . . . . 1 2 . 2 3 Communications Jammed . | . . . . . . . . . . . . . . . . Distress Signals . | . . . . . . . . . . . . . . . . Times Spotted 386 | . 30 4 . 9 9 33 35 . 11 4 29 10 2 130 80 Peak Tracking Total 13 | . 6 3 . 5 3 6 5 . 5 2 3 5 2 10 13 Tactical Retreats 23 | . 5 . . 1 . 4 2 . . . 1 . . 3 7 Traps | -11 -10 -10 -10 -9 -8 -8 -8 -7 -7 -6 -6 -6 -6 -6 -5 ------- Run | Yrd Mat Min Exi Min Mat Gar Mat Fac DSF Fac Ext Cet Arc Hub Fac Traps Triggered 27 | . 2 . . . . 9 4 1 . 1 4 . . 3 3 Indirectly 1 | . . . . . . . . . . . . . . 1 . Trap Hack Attempts . | . . . . . . . . . . . . . . . . Triggered . | . . . . . . . . . . . . . . . . Disarmed . | . . . . . . . . . . . . . . . . Reprogrammed . | . . . . . . . . . . . . . . . . Reused 5 | . . . . . . . . . 5 . . . . . . Traps Extracted . | . . . . . . . . . . . . . . . . Installed 6 | . . . . . . . . . 6 . . . . . . Triggered 5 | . . . . . . . . . 5 . . . . . . Most Traps Carried 2 | . . . . . . . . . 2 . . . . . . Objects Rigged 2 | . . . . . . . 2 . . . . . . . . Exploded 1 | . . . . . . . 1 . . . . . . . . Machines | -11 -10 -10 -10 -9 -8 -8 -8 -7 -7 -6 -6 -6 -6 -6 -5 ---------- Run | Yrd Mat Min Exi Min Mat Gar Mat Fac DSF Fac Ext Cet Arc Hub Fac Machines Disabled 47 | . . . . . 4 5 8 . 1 . 1 1 1 17 9 Max in Single Turn 5 | . . . . . 2 1 3 . 1 . 1 1 . 5 3 Garrison Access 1 | . . . . . . . . . . . . . . . 1 Garrison Relay 4 | . . . . . . 4 . . . . . . . . . Network Hub 1 | . . . . . . . . . . . . . . 1 . Machines Repaired . | . . . . . . . . . . . . . . . . Machines Dismantled . | . . . . . . . . . . . . . . . . Machines Sabotaged . | . . . . . . . . . . . . . . . . Overloaded Fab Kills . | . . . . . . . . . . . . . . . . Hacking | -11 -10 -10 -10 -9 -8 -8 -8 -7 -7 -6 -6 -6 -6 -6 -5 --------- Run | Yrd Mat Min Exi Min Mat Gar Mat Fac DSF Fac Ext Cet Arc Hub Fac Machines Accessed 49 | . 5 . 2 1 3 3 8 2 . 1 10 1 . 8 5 Terminals 38 | . 5 . . . 1 3 6 2 . 1 9 1 . 8 2 Fabricators . | . . . . . . . . . . . . . . . . Repair Stations 2 | . . . . . . . . . . . 1 . . . 1 Recycling Units . | . . . . . . . . . . . . . . . . Scanalyzers 3 | . . . . . 1 . 2 . . . . . . . . Garrison Access 3 | . . . . . 1 . . . . . . . . . 2 Total Hacks 136 | . 11 . 2 1 8 6 29 3 . 1 32 1 . 29 13 Successful 71 | . 7 . 2 1 4 2 16 1 . 1 19 . . 13 5 Failed 64 | . 4 . . . 4 4 13 2 . . 12 1 . 16 8 Catastrophic 14 | . . . . . 1 1 . 1 . . 2 1 . 6 2 Database Lockouts 1 | . . . . . . . . . . . 1 . . . . Manual 47 | . 8 . 1 . 2 . 13 2 . . 6 1 . 12 2 Terminals 109 | . 11 . . . 2 6 22 3 . 1 28 1 . 29 6 Fabricators . | . . . . . . . . . . . . . . . . Repair Stations 7 | . . . . . . . . . . . 4 . . . 3 Recycling Units . | . . . . . . . . . . . . . . . . Scanalyzers 11 | . . . . . 4 . 7 . . . . . . . . Garrison Access 6 | . . . . . 2 . . . . . . . . . 4 Terminal Hacks 41 | . 5 . 2 1 . 2 4 1 . 1 13 . . 11 1 Record 2 | . 1 . 1 . . . . . . . . . . . . Part Schematic 2 | . . . . . . . . . . . 2 . . . . Robot Schematic 1 | . . . . . . . . . . . 1 . . . . Robot Analysis 4 | . 2 . . . . . . . . . 1 . . 1 . Prototype ID Bank 5 | . . . . . . . 1 . . . 1 . . 2 1 Open Door 6 | . . . . 1 . . . . . 1 4 . . . . Open DSF 1 | . . . . . . . . 1 . . . . . . . Branch Access Points 1 | . . . . . . . . . . . 1 . . . . Emergency Access Points 1 | . . . . . . 1 . . . . . . . . . Alert Level 1 | . . . . . . . . . . . 1 . . . . Unreport Threat 1 | . . . . . . . . . . . . . . 1 . Locate Traps 8 | . 2 . . . . . 2 . . . 1 . . 3 . Transport Status 1 | . . . . . . . . . . . 1 . . . . Recall Investigation 1 | . . . . . . . . . . . . . . 1 . Zone Layout 4 | . . . . . . . 1 . . . . . . 3 . Garrison Registry 1 | . . . . . . 1 . . . . . . . . . Proto ID Catalog 1 | . . . 1 . . . . . . . . . . . . Fabricator Hacks . | . . . . . . . . . . . . . . . . Repair Station Hacks 4 | . . . . . . . . . . . 3 . . . 1 Scan Component 3 | . . . . . . . . . . . 2 . . . 1 Repair 1 | . . . . . . . . . . . 1 . . . . Recycling Unit Hacks . | . . . . . . . . . . . . . . . . Scanalyzer 9 | . . . . . 3 . 6 . . . . . . . . Insert Component 1 | . . . . . . . 1 . . . . . . . . Retrieve Study 8 | . . . . . 3 . 5 . . . . . . . . Garrison Access Hacks 2 | . . . . . 1 . . . . . . . . . 1 Unlock Access 2 | . . . . . 1 . . . . . . . . . 1 Unauthorized Hacks 15 | . 2 . . . . . 6 . . . 3 . . 2 2 Terminals 14 | . 2 . . . . . 6 . . . 3 . . 2 1 Assimilate 5 | . 2 . . . . . 2 . . . . . . 1 . Botnet 5 | . . . . . . . . . . . 3 . . 1 1 Detonate 2 | . . . . . . . 2 . . . . . . . . Disrupt 2 | . . . . . . . 2 . . . . . . . . Fabricators . | . . . . . . . . . . . . . . . . Repair Stations . | . . . . . . . . . . . . . . . . Recycling Units . | . . . . . . . . . . . . . . . . Scanalyzers . | . . . . . . . . . . . . . . . . Garrison Access 1 | . . . . . . . . . . . . . . . 1 Jam 1 | . . . . . . . . . . . . . . . 1 Data Cores Recovered . | . . . . . . . . . . . . . . . . Used . | . . . . . . . . . . . . . . . . Hacking Detections 38 | . 4 . . . 3 3 8 1 . . 7 2 . 7 3 Full Trace Events 6 | . 1 . . . 2 1 . . . . 1 . . 1 . Feedback Events . | . . . . . . . . . . . . . . . . Feedback Blocked . | . . . . . . . . . . . . . . . . Robot Schematics Acquired 1 | . . . . . . . . . . . 1 . . . . Robots Built . | . . . . . . . . . . . . . . . . Authchips . | . . . . . . . . . . . . . . . . Time . | . . . . . . . . . . . . . . . . Total Robot Build Rating . | . . . . . . . . . . . . . . . . Part Schematics Acquired 2 | . . . . . . . . . . . 2 . . . . Parts Built . | . . . . . . . . . . . . . . . . Authchips . | . . . . . . . . . . . . . . . . Time . | . . . . . . . . . . . . . . . . Total Part Build Rating . | . . . . . . . . . . . . . . . . Part Studies Acquired 8 | . . . . . 3 . 5 . . . . . . . . Parts Repaired 1 | . . . . . . . . . . . 1 . . . . Time 44 | . . . . . . . . . . . 44 . . . . Parts Recycled . | . . . . . . . . . . . . . . . . Recycled Matter . | . . . . . . . . . . . . . . . . Retrieved Matter . | . . . . . . . . . . . . . . . . Retrieved Components . | . . . . . . . . . . . . . . . . Parts Scanalyzed . | . . . . . . . . . . . . . . . . Part Schematics Acquired . | . . . . . . . . . . . . . . . . Parts Damaged . | . . . . . . . . . . . . . . . . Bothacking | -11 -10 -10 -10 -9 -8 -8 -8 -7 -7 -6 -6 -6 -6 -6 -5 ------------ Run | Yrd Mat Min Exi Min Mat Gar Mat Fac DSF Fac Ext Cet Arc Hub Fac Used RIF Installer . | . . . . . . . . . . . . . . . . Robots Hacked . | . . . . . . . . . . . . . . . . Non-combat . | . . . . . . . . . . . . . . . . Combat . | . . . . . . . . . . . . . . . . Robot Hacks Applied . | . . . . . . . . . . . . . . . . Relay Couplers Released 21 | . . . . . . 17 . . . . . . . 4 . Machine Destruction 17 | . . . . . . 17 . . . . . . . . . Programmers 4 | . . . . . . . . . . . . . . 4 . Fabnet Peak Effective % . | . . . . . . . . . . . . . . . . Robots Rewired 14 | . . . . . . . . . . . 14 . . . . Allies Hacked . | . . . . . . . . . . . . . . . . Hacks Repelled . | . . . . . . . . . . . . . . . . Allies | -11 -10 -10 -10 -9 -8 -8 -8 -7 -7 -6 -6 -6 -6 -6 -5 -------- Run | Yrd Mat Min Exi Min Mat Gar Mat Fac DSF Fac Ext Cet Arc Hub Fac Total Allies 28 | . 1 . . . . . 1 . . . 20 5 . 1 . Largest Group 20 | . 1 . . . . . 1 . . . 17 20 20 18 . Highest-Rated Group 1064 | . 10 . . . . . 10 . . . 646 1064 1064 885 . Highest-Rated Ally 159 | . 10 . . . . . 10 . . . 159 159 159 96 . Initial Warlord ECA Mod 14 | . . . . . . . 6 5 5 14 14 14 14 14 13 Total Orders 5 | . . . . . 1 . . . 2 . . . . 2 . STAY 1 | . . . . . . . . . . . . . . 1 . FOLLOW 1 | . . . . . . . . . . . . . . 1 . RETURN 3 | . . . . . 1 . . . 2 . . . . . . Ally Attacks 379 | . . . . . . . . . . . 150 8 18 193 10 Total Damage 9720 | . . . . . . . . . . . 2784 501 420 5977 38 Kills 66 | . . . . . . . . . . . 15 4 3 44 . Allies Corrupted 2 | . . . . . . . . . . . . . . 2 . Allies Melted 1 | . . . . . . . . . . . . . . 1 . Intel | -11 -10 -10 -10 -9 -8 -8 -8 -7 -7 -6 -6 -6 -6 -6 -5 ------- Run | Yrd Mat Min Exi Min Mat Gar Mat Fac DSF Fac Ext Cet Arc Hub Fac Active Infowar (turns) 1 | . . . . . 1 . . . . . . . . . . Sensors 1 | . . . . . 1 . . . . . . . . . . Robot Analysis Total 4 | . 2 . . . . . . . . . 1 . . 1 . Derelict Logs Recovered 2 | . . 1 . 1 . . . . . . . . . . . Drone Launches 13 | . . . . . 1 . . . 2 . . . . . 10 Drone Recoveries 12 | . . . . . 1 . . . 2 . . . . . 9 Exploration | -11 -10 -10 -10 -9 -8 -8 -8 -7 -7 -6 -6 -6 -6 -6 -5 ------------- Run | Yrd Mat Min Exi Min Mat Gar Mat Fac DSF Fac Ext Cet Arc Hub Fac Turns Passed 10190 | 58 991 514 215 220 446 1159 1344 160 441 416 1463 398 111 1290 964 Spaces Moved 6868 | 54 695 466 212 185 387 715 940 155 225 352 896 209 53 687 637 Core 150 | 4 . . . . . . . . . . . . . . 146 Treads 126 | . 125 . . . . . . . . . . 1 . . . Legs . | . . . . . . . . . . . . . . . . Wheels 6587 | 50 570 466 212 185 387 715 940 155 225 352 896 208 53 687 486 Hover . | . . . . . . . . . . . . . . . . Flight 5 | . . . . . . . . . . . . . . . 5 Fastest Speed 50 | 50 80 100 100 100 80 90 100 100 100 110 110 110 110 110 50 Average Speed 104 | 77 100 100 100 100 92 101 102 100 110 110 111 110 110 112 105 Slowest Speed 685 | 80 160 100 100 100 95 125 105 100 115 110 120 240 110 175 685 Overloaded Moves . | . . . . . . . . . . . . . . . . Propulsion Burnouts . | . . . . . . . . . . . . . . . . Robots Hopped . | . . . . . . . . . . . . . . . . Potential Cave-ins . | . . . . . . . . . . . . . . . . Cave-ins Triggered . | . . . . . . . . . . . . . . . . Exploration Rate (%) 56 | 4 95 92 60 43 23 89 79 5 96 10 87 74 74 50 23 Regions Visited 15 Branch Regions 7 Pre-discovered Areas 2 | . . 1 1 . . . . . . . . . . . . Known Exits Taken 4 | . . . . . 1 . 1 1 . . 1 . . . . Unknown Exits Taken 9 | 1 1 1 1 1 . . . . . 1 . 1 1 1 . Scrap Searched 3 | . . 2 . 1 . . . . . . . . . . . Spaces Dug 45 | . . . . . . . 4 . . . . . . 27 14 Terrain Destroyed 409 | . . . . . 70 6 50 . . 1 13 . . 200 69 Melee . | . . . . . . . . . . . . . . . . Projectile 73 | . . . . . . 3 23 . . 1 13 . . 18 15 AOE 336 | . . . . . 70 3 27 . . . . . . 182 54 Terrain Rammed . | . . . . . . . . . . . . . . . . Walls Destroyed . | . . . . . . . . . . . . . . . . Machines Disabled . | . . . . . . . . . . . . . . . . Actions | -11 -10 -10 -10 -9 -8 -8 -8 -7 -7 -6 -6 -6 -6 -6 -5 --------- Run | Yrd Mat Min Exi Min Mat Gar Mat Fac DSF Fac Ext Cet Arc Hub Fac Total 8980 | 69 859 486 214 202 455 971 1180 159 378 377 1271 372 100 1050 837 Wait 773 | . 33 2 . 2 13 35 103 . 70 . 148 131 43 145 48 Move 6853 | 53 694 465 211 184 386 714 939 154 224 351 895 208 52 686 637 Hop . | . . . . . . . . . . . . . . . . Pick Up 144 | 10 25 4 1 2 12 18 14 2 14 4 6 4 . 12 16 Fast Attach 39 | . 6 . . . 2 4 9 . 2 4 . 6 . 5 1 Attach 106 | 6 6 1 . . 11 9 5 2 4 2 3 4 . 23 30 Detach 36 | . . . . . 2 1 . . . . . 3 . 14 16 Swap 75 | . 6 . 1 2 6 14 11 1 7 . 4 2 1 16 4 Drop 128 | . 21 . 1 3 11 13 21 . 21 6 5 9 1 11 5 Fire 571 | . 68 14 . 9 12 90 78 . 30 2 45 5 3 136 79 Melee 18 | . . . . . . 17 . . . . . . . . 1 Ram . | . . . . . . . . . . . . . . . . Kick . | . . . . . . . . . . . . . . . . Crush . | . . . . . . . . . . . . . . . . Escape Stasis 88 | . . . . . . 56 . . . 8 24 . . . . Rewire 143 | . . . . . . . . . . . 141 . . 2 . Trap 6 | . . . . . . . . . 6 . . . . . . Miscellaneous . | . . . . . . . . . . . . . . . . Route ------- -11/Scrapyard -10/Materials (discovered 5 exits: [*Mat x3] / [*Min] / [*Sub]) -10/Mines (discovered 3 exits: [*Mat x2] / *Exi) -10/Exiles -9/Mines -8/Materials (discovered 2 exits: Fac / Gar) -8/Garrison (discovered 3 exits: *Mat x3) -8/Materials -7/Factory -7/DSF -6/Factory -6/Extension (discovered 2 exits: *Fac / *Cet) -6/Cetus (discovered 2 exits: *Fac / *Arc) -6/Archives (discovered 2 exits: *Fac / *Hub) -6/Hub_04(d) (discovered 3 exits: *Fac x3) -5/Factory (discovered 2 exits: [*Fac] / Gar) History --------- Turn | Location | Event 28 | -11/Scrapyard | Discovered new exit (range 15) 59 | -11/Scrapyard | Entered Materials 165 | -10/Materials | Discovered new exit (range 8) 305 | -10/Materials | Build established: Mutant 403 | -10/Materials | Discovered new exit (range 3) 480 | -10/Materials | Discovered new exit (range 14) 671 | -10/Materials | Core integrity fell below 50% 754 | -10/Materials | Discovered new exit (range 9) 1011 | -10/Materials | Discovered new exit (range 12) 1050 | -10/Materials | Entered Mines 1094 | -10/Mines | Discovered new exit (range 6) 1286 | -10/Mines | Received a Rocket Launcher from a helpful Derelict 1326 | -10/Mines | Learned location of 1 exit from Materials 1327 | -10/Mines | Learned location of Storage (-7) 1546 | -10/Mines | Discovered new exit (range 6) 1559 | -10/Mines | Deemed a non-threat by the Exiles lab entrance 1560 | -10/Mines | Discovered new exit (range 5) 1564 | -10/Mines | Entered Exiles 1588 | -10/Exiles | Met 8R-AWN 1604 | -10/Exiles | Met EX-HEX 1633 | -10/Exiles | Met EX-BIN 1644 | -10/Exiles | Aligned with FarCom system 1645 | -10/Exiles | Given EX-Vault access code 1669 | -10/Exiles | Opened EX-Vault 1678 | -10/Exiles | Found Firepult 1700 | -10/Exiles | Warned to stay clear of 0b10 Research branches 1728 | -10/Exiles | Met EX-DEC 1732 | -10/Exiles | Learned location of Zion (-7) 1768 | -10/Exiles | Discovered new exit (range 12) 1779 | -10/Exiles | Left Exiles lab with Firepult 1779 | -10/Exiles | Entered Mines 1815 | -9/Mines | Found the Drone Emporium 1825 | -9/Mines | Found Prototype Device 1857 | -9/Mines | Assembled infested the area 1862 | -9/Mines | Assisted by a Guerilla fighting off Assembled 1941 | -9/Mines | Learned Materials terminal intel 1946 | -9/Mines | Discovered new exit (range 7) 1985 | -9/Mines | Found a damaged Exp. Sensor Array with a note attached 1990 | -9/Mines | Found Prototype Device 1999 | -9/Mines | Entered Materials 1999 | -8/Materials | Evolved 4 slots: Propulsion x1, Utility x3 2000 | -8/Materials | Identified exit to Factory 2001 | -8/Materials | Loaded intel: 12 terminal locations 2003 | -8/Materials | Identified Splice Drone Bay 2007 | -8/Materials | Identified Exp. Sensor Array 2444 | -8/Materials | Identified exit to Garrison 2445 | -8/Materials | Entered Garrison 2541 | -8/Garrison | Triggered checkpoint 2567 | -8/Garrison | Garrison Relay disabled 2755 | -8/Garrison | Lost 4 parts (1p3n) 2767 | -8/Garrison | Triggered checkpoint 2791 | -8/Garrison | Destroyed 12 combat bots 2813 | -8/Garrison | Triggered checkpoint 2884 | -8/Garrison | Garrison Relay disabled 2992 | -8/Garrison | Build established: Scavenger-Mutant 3079 | -8/Garrison | Discovered new exit (range 10) 3137 | -8/Garrison | Triggered checkpoint 3211 | -8/Garrison | Triggered checkpoint 3324 | -8/Garrison | Discovered new exit (range 9) 3333 | -8/Garrison | Garrison Relay disabled 3381 | -8/Garrison | Discovered new exit (range 46) 3381 | -8/Garrison | Discovered new exit (range 41) 3381 | -8/Garrison | Discovered new exit (range 6) 3604 | -8/Garrison | Entered Materials 3850 | -8/Materials | Core integrity fell below 50% 4004 | -8/Materials | First assault squad dispatched 4255 | -8/Materials | Build established: Mutant 4362 | -8/Materials | Destroyed 7 combat bots 4700 | -8/Materials | Discovered exit to Factory (range 11) 4948 | -8/Materials | Entered Factory 4948 | -7/Factory | Evolved 2 slots: Utility x2 5107 | -7/Factory | Identified exit to DSF 5108 | -7/Factory | Entered DSF 5146 | -7/DSF | Additional patrols routed to DSF 5210 | -7/DSF | Discovered new exit (range 15) 5445 | -7/DSF | Sterilization system engaged 5461 | -7/DSF | Destroyed 7 combat bots 5465 | -7/DSF | Ambient heat levels rising (+10) 5480 | -7/DSF | Ambient heat levels rising (+10) 5495 | -7/DSF | Ambient heat levels rising (+10) 5510 | -7/DSF | Ambient heat levels rising (+10) 5514 | -7/DSF | Build established: Scavenger-Mutant 5525 | -7/DSF | Ambient heat levels rising (+10) 5540 | -7/DSF | Ambient heat levels rising (+10) 5549 | -7/DSF | Entered Factory 5549 | -6/Factory | Evolved 2 slots: Power x1, Utility x1 5917 | -6/Factory | Discovered new exit (range 6) 5965 | -6/Factory | Entered Extension 6010 | -6/Extension | Central database locked down 6059 | -6/Extension | Repaired Arm. Huge Wheel+? 6272 | -6/Extension | Rescued a captive Derelict 6384 | -6/Extension | Rescued a captive Derelict 6385 | -6/Extension | Rescued a captive Derelict 6408 | -6/Extension | Rescued A7 6726 | -6/Extension | Spotted B-75 Beast 6733 | -6/Extension | Destroyed B-75 Beast 6744 | -6/Extension | Spotted B-75 Beast 6762 | -6/Extension | Allies destroyed B-75 Beast 6933 | -6/Extension | Identified exit to Cetus 7169 | -6/Extension | Build established: Commander-Mutant 7204 | -6/Extension | Rescued a captive Derelict 7204 | -6/Extension | Rescued a captive Derelict 7346 | -6/Extension | Discovered new exit (range 10) 7428 | -6/Extension | Entered Cetus 7428 | -6/Cetus | Accompanied by 15 allies (A7) 7433 | -6/Cetus | Acquired a Cetus Manufacturing Module code from A7 7443 | -6/Cetus | Spotted Cetus Guard 7443 | -6/Cetus | Spotted Cetus Guard 7446 | -6/Cetus | Spotted Cetus Guard 7446 | -6/Cetus | Spotted Cetus Guard 7450 | -6/Cetus | Destroyed Cetus Guard 7450 | -6/Cetus | Destroyed Cetus Guard 7450 | -6/Cetus | Destroyed Cetus Guard 7450 | -6/Cetus | Destroyed Cetus Guard 7515 | -6/Cetus | Started Cetus Manufacturing Module 7540 | -6/Cetus | Manufactured an Enhanced Grunt 7555 | -6/Cetus | Escorted A7 to Cetus Mainframe 7565 | -6/Cetus | Manufactured an Enhanced Grunt 7590 | -6/Cetus | Manufactured an Enhanced Grunt 7615 | -6/Cetus | Manufactured an Enhanced Grunt 7640 | -6/Cetus | Manufactured an Enhanced Grunt 7664 | -6/Cetus | Discovered new exit (range 15) 7683 | -6/Cetus | Spotted Cetus Guard 7683 | -6/Cetus | Spotted Cetus Guard 7686 | -6/Cetus | Spotted Cetus Guard 7687 | -6/Cetus | Spotted Cetus Guard 7689 | -6/Cetus | Allies destroyed Cetus Guard 7689 | -6/Cetus | Destroyed Cetus Guard 7690 | -6/Cetus | Allies destroyed Cetus Guard 7691 | -6/Cetus | Allies destroyed Cetus Guard 7696 | -6/Cetus | Discovered new exit (range 15) 7702 | -6/Cetus | Met Revision 17 7826 | -6/Cetus | Entered Archives 7826 | -6/Archives | Accompanied by 20 allies (A7) 7831 | -6/Archives | Received a hacking code to weaken MAIN.C 7859 | -6/Archives | Unable to access archive contents 7863 | -6/Archives | Discovered new exit (range 14) 7870 | -6/Archives | Unable to access archive contents 7874 | -6/Archives | Discovered new exit (range 15) 7937 | -6/Archives | Entered Hub_04(d) 7937 | -6/Hub_04(d) | Accompanied by 18 allies 7999 | -6/Hub_04(d) | Discovered new exit (range 10) 8086 | -6/Hub_04(d) | Spotted B-75 Beast 8095 | -6/Hub_04(d) | Garrison activated, responded to threat 8100 | -6/Hub_04(d) | Allies destroyed B-75 Beast 8229 | -6/Hub_04(d) | Network Hub disabled 8255 | -6/Hub_04(d) | Murdered 5 allies 8365 | -6/Hub_04(d) | Discovered new exit (range 12) 8365 | -6/Hub_04(d) | Discovered new exit (range 17) 8379 | -6/Hub_04(d) | Garrison activated, responded to threat 8381 | -6/Hub_04(d) | Spotted Lightning 8381 | -6/Hub_04(d) | Spotted Lightning 8386 | -6/Hub_04(d) | System corruption reached 10% 8399 | -6/Hub_04(d) | Destroyed Lightning 8418 | -6/Hub_04(d) | Allies destroyed Lightning 8426 | -6/Hub_04(d) | Found Prototype Device 8427 | -6/Hub_04(d) | Identified Exp. EM Shield 8433 | -6/Hub_04(d) | Found Prototype Energy Cannon 8433 | -6/Hub_04(d) | Identified EMDS 8436 | -6/Hub_04(d) | Found Prototype Device 8437 | -6/Hub_04(d) | Identified Exp. Phase Shifter 8447 | -6/Hub_04(d) | Lost 4 parts (1p1n2w) 8475 | -6/Hub_04(d) | Spotted Lightning 8487 | -6/Hub_04(d) | Allies destroyed Lightning 8570 | -6/Hub_04(d) | Disrupted transfer network 8632 | -6/Hub_04(d) | Build established: Scavenger-Mutant 8637 | -6/Hub_04(d) | First assault squad dispatched 8676 | -6/Hub_04(d) | High security lockdown imminent 8697 | -6/Hub_04(d) | Found Prototype Device 8698 | -6/Hub_04(d) | Identified Exp. Thermal Shield 8708 | -6/Hub_04(d) | Destroyed 8 combat bots 8756 | -6/Hub_04(d) | High security lockdown engaged 8784 | -6/Hub_04(d) | Garrison activated, responded to threat 8813 | -6/Hub_04(d) | Lost 3 allies 8862 | -6/Hub_04(d) | Destroyed 9 combat bots 8975 | -6/Hub_04(d) | Destroyed 20 combat bots 9086 | -6/Hub_04(d) | Garrison activated, responded to threat 9150 | -6/Hub_04(d) | Destroyed 33 combat bots 9227 | -6/Hub_04(d) | Entered Factory 9227 | -5/Factory | Evolved 2 slots: Utility x1, Weapon x1 9240 | -5/Factory | Identified exit to Garrison 9527 | -5/Factory | First assault squad dispatched 9639 | -5/Factory | Build established: Scavenger-Tank 9773 | -5/Factory | High security lockdown imminent 9825 | -5/Factory | Lost 6 parts (1n4u1w) 9826 | -5/Factory | Destroyed 10 combat bots 9853 | -5/Factory | High security lockdown engaged 10003 | -5/Factory | Destroyed 9 combat bots 10084 | -5/Factory | Released all parts (6) 10135 | -5/Factory | Core integrity fell below 50% 10163 | -5/Factory | Lost 6 parts (1n4u1w) 10165 | -5/Factory | Core integrity fell below 20% 10173 | -5/Factory | Discovered new exit (range 15) 10189 | -5/Factory | System corruption reached 10% 10191 | -5/Factory | Destroyed by P-70 Sage with High-powered Shock Rifle Last Messages --------------- 10134_ Critical hit (Burn: +50). 10135_ Slug penetrates Subcomponent Replicator. 10136_ Slug penetrates P-70 Sage. 10136_ Chain reaction triggered in Mak. Power Source. 10136_ Splice Drone destroyed. 10139_ Penetrated by Slug. 10139_ Slug penetrates Wall. 10140_ Slug penetrates Subcomponent Replicator. 10142_ Slug penetrates Wall. 10147_ System corrupted: Heat flow error (+199). 10168_ System corrupted: Component data lost. 10171_ Triggered Shock Trap. 10171_ The floor emits a surge of raw power. 10171_ System corrupted (+2). 10173_ EXIT=FOUND 10174_ Penetrated by Slug. 10188_ Manufacturing Mainframe disabled. 10190_ Penetrated by Slug. Map ----- +----------------------------------------------------+ | ?????????????????????????????????????????? | | ?????????????????????????????????????????? | | ?????????????????????????????????????????? | | ?????????????????????????????????????????? | | ?????????????????????????????????????????? | | ?????????????????????????????????????????? | | ?????????????????????????????????????????? | | ?????????????????????????????????????????? | | ?????????????????????????????????????????? | | ???????????????????????????????????? ? | | ?????????????????????????????????? ! | | ??????????????????####???#??????# | | ??????????????????# ??? ??????# | | ??????????????????# "??? "?????# | | ??????????????????# ""?" ""????# | | ??????????????????# """" """???# | | ??????????????"???# """" """"??# [ | | ????????????""" "?# ?## | | ??????????? """ ""# """" """" ## | | | ??????????? T# """" """" ## | | ??????????? """ ""# """" """" ## | | ?????????# """ ""# """ """" ## | | ?????????# """ ""# p #?? | | ????????????? # p #???? ? | | ?????????????####/;######+###"########+### | | ?????????????# @ YY | | ?????????????# Y p | | ?????????????# < Y | | ?????????????# | | ?????????????# | | ?????????????####+#############+########## | | ????????????????????????????? ???????? | | ??????????????????????????? """" """?????? | | ?????????????????????????#! """" """" ???? | | ?????????????????????????# """" """" #??? | | ?????????????????????????# """" """"????? | | ?????????????????????????# ?????? | | ?????????????????????????#????"" """????? | | ???????????????????????????????? """?????? | | ???????????????????????????????? ""??????? | | ???????????????????????????????? "???????? | | ???????????????????????????????? ????????? | | ?????????????????????????????????????????? | | ?????????????????????????????????????????? | | ?????????????????????????????????????????? | | ?????????????????????????????????????????? | | ?????????????????????????????????????????? | | ?????????????????????????????????????????? | | ?????????????????????????????????????????? | | ?????????????????????????????????????????? | +----------------------------------------------------+ Best States ------------- Heat Dissipation 168 Energy Generation 33 Energy Capacity 540 Matter Stores 300 Matter Capacity 300 Sight Range 16 Terrain Scan Density 10 Power Amplification 30 Base Temperature (-) 100 Armor Coverage 600 Resistance: KI 20 Resistance: TH 30 Resistance: EM 75 Core Shielding 20 Power Shielding 90 Propulsion Shielding 66 Utility Shielding 66 Weapon Shielding 33 Evasion (%) 60 Targeting Accuracy 8 Recoil Reduction 2 Offensive Hacking 10 Item Schematics ----------------- Imp. Transmission Jammer | -6/Extension | Hacked Hyp. Mass Driver | -6/Extension | Hacked Robot Schematics ------------------ R-10 Processor | -6/Extension | Hacked Fabricated ------------ Nothing Repaired ---------- Arm. Huge Wheel | 74% | -6/Extension Studied --------- Com. Wheel | -8/Materials | Hacked Arm. Wheel | -8/Materials | Hacked Wheel | -8/Materials | Hacked Plasma Cannon | -8/Materials | Hacked Arm. Huge Wheel | -8/Materials | Hacked Katana | -8/Materials | Hacked Lgt. Deuterium Engine | -8/Materials | Hacked Lgt. Nuclear Core | -8/Materials | Hacked Alien Tech Used ----------------- None Achievements -------------- Botjacking Ew, Corruption Hot Goods Recruitment Drive Window Shopping Challenges ------------ None Game ------ Seed GrapheneTowerDriver Manual? 0 Play Time 02:35:42 Cumulative 314.1 hours Start 2025.10.30 @ 20:07:48 End 2025.10.31 @ 02:47:10 Sessions 5 Manual Loads 0 Difficulty Rogue Special Mode None Game No. 240 Rogue 231 Adventurer 9 Explorer 0 Win Type - Total 3 Types 2/0/0/1/0/0/0/0/0/0 Lore% 86 Gallery% 74 Achievement% 47 Wizard Run 0 Options --------- Layout 1 ASCII 0 Keyboard 0 Movement Numpad Keybinds 0 Fullscreen 1 Font 24/Smallcaps Map View 50x35 Zoom Use 0% Tactical HUD 1 Map Filters NONE Filters NONE Steam 1 RUN: dd3ddae5-0447-49b1-a31e-41bed22e9201